Workbook

Sheet 작업
A1: A사
A2: 영업이익(t) | B2: 30 | D2: 유동자산 | E2: 1599 | J2: A사
A3: 영업이익(t-1) | B3: 166 | D3: 유동부채 | E3: 1624 | J3: B사
A4: 매출액(t) | B4: 100 | D4: 부채총계 | E4: 1658 | J4: C사
A5: 매출액(t-1) | B5: 50 | D5: 자본총계 | E5: 1515 | J5: D사
A6: 당기순이익 | B6: 171 | D6: 이자비용 | E6: 36
B10: 항목 | C10: 수치 | D10: 판정점수 | E10: 최고점수 | F10: 최저점수 | G10: 가중치
A11: 수익성 | B11: 영업이익률 | C11: =B2/B4 -> 0.3 | D11: =IF(C11<5%,(C11/5%-1)*G11,IF(AND(C11>=5%,C11<30%),((C11*10)-0.5)*G11,IF(C11>=30%,2.5*G11))) -> 2.5 | E11: 2.5 | F11: -1 | G11: 1
B12: ROE | C12: 0.04 | D12: =IF(C12<8%,(C12/8%-1)*G12,IF(AND(C12>=8%,C12<28%),((C12*10)-0.8)*G12,IF(C12>=28%,2*G12))) -> -0.5 | E12: 2 | F12: -1 | G12: 1
A13: 성장성 | B13: 매출액증가율 | C13: =(B4-B5)/B5 -> 1 | D13: 1 | E13: 1 | F13: -1 | G13: 1
B14: 영업이익증가율 | C14: =(B2-B3)/B3 -> -0.8192771084 | D14: 1 | E14: 1 | F14: -1 | G14: 1
A15: 안정성 | B15: 유동비율 | C15: =(E2/E3)*100 -> 98.46059113 | D15: =IF(C15<100,(C15/100-1)*G15,IF(AND(C15>=100,C15<300),(C15/100)*G15,IF(C15>=300,3*G15))) -> -0.01539408867 | E15: 1 | F15: -1 | G15: 1
B16: 부채비율 | C16: =(E4/E5)*100 -> 109.4389439 | D16: =IF(C16<100,1-(C16/100)*G16,IF(AND(C16>=100,C16<300),(1-(C16/100))*G16,IF(C16>=300,-1*G16))) -> -0.09438943894 | E16: 1 | F16: -1 | G16: 1
B17: 이자보상배율 | C17: =B2/E6 -> 0.8333333333 | D17: =IF(C17<1,C17/6-1*G17,IF(AND(C17>=1,C17<6),(C17/6)*G17,IF(C17>=6,1*G17))) -> -0.8611111111 | E17: 1 | F17: -1 | G17: 1
B18: 자본유보율 | C18: 1216.9 | D18: =IF(C18<500,(C18/500)-1*G18,IF(AND(C18>=500,C18<1000),(C18/500)-1*G18,IF(C18>=1000,1*G18))) -> 1 | G18: 1

Sheet A사
A1: A 사
A2: 영업이익(t) | B2: 30 | D2: 유동자산 | E2: 1599
A3: 영업이익(t-1) | B3: 166 | D3: 유동부채 | E3: 1624
A4: 매출액(t) | B4: 100 | D4: 부채총계 | E4: 1658
A5: 매출액(t-1) | B5: 50 | D5: 자본총계 | E5: 1515
A6: 당기순이익 | B6: 171 | D6: 이자비용 | E6: 36
B10: 항목 | C10: 수치 | D10: 판정점수 | E10: 최고점수 | F10: 최저점수 | G10: 가중치
A11: 수익성 | B11: 영업이익률 | C11: =B2/B4 -> 0.3 | D11: =IF(C11<5%,(C11/5%-1)*G11,IF(AND(C11>=5%,C11<30%),((C11*10)-0.5)*G11,IF(C11>=30%,2.5*G11))) -> 2.5 | E11: 2.5 | F11: -1 | G11: 1
B12: ROE | C12: 0.04 | D12: =IF(C12<8%,(C12/8%-1)*G12,IF(AND(C12>=8%,C12<28%),((C12*10)-0.8)*G12,IF(C12>=28%,2*G12))) -> -0.5 | E12: 2 | F12: -1 | G12: 1
A13: 성장성 | B13: 매출액증가율 | C13: =(B4-B5)/B5 -> 1 | D13: 1 | E13: 1 | F13: -1 | G13: 1
B14: 영업이익증가율 | C14: =(B2-B3)/B3 -> -0.8192771084 | D14: 1 | E14: 1 | F14: -1 | G14: 1
A15: 안정성 | B15: 유동비율 | C15: =(E2/E3)*100 -> 98.46059113 | D15: =IF(C15<100,(C15/100-1)*G15,IF(AND(C15>=100,C15<300),(C15/100)*G15,IF(C15>=300,3*G15))) -> -0.01539408867 | E15: 1 | F15: -1 | G15: 1
B16: 부채비율 | C16: =(E4/E5)*100 -> 109.4389439 | D16: =IF(C16<100,1-(C16/100)*G16,IF(AND(C16>=100,C16<300),(1-(C16/100))*G16,IF(C16>=300,-1*G16))) -> -0.09438943894 | E16: 1 | F16: -1 | G16: 1
B17: 이자보상배율 | C17: =B2/E6 -> 0.8333333333 | D17: =IF(C17<1,C17/6-1*G17,IF(AND(C17>=1,C17<6),(C17/6)*G17,IF(C17>=6,1*G17))) -> -0.8611111111 | E17: 1 | F17: -1 | G17: 1
B18: 자본유보율 | C18: 1216.9 | D18: =IF(C18<500,(C18/500)-1*G18,IF(AND(C18>=500,C18<1000),(C18/500)-1*G18,IF(C18>=1000,1*G18))) -> 1 | G18: 1

Sheet B사
A1: B 사
A2: 영업이익(t) | B2: 60 | D2: 유동자산 | E2: 1244
A3: 영업이익(t-1) | B3: 200 | D3: 유동부채 | E3: 1577
A4: 매출액(t) | B4: 220 | D4: 부채총계 | E4: 1333
A5: 매출액(t-1) | B5: 100 | D5: 자본총계 | E5: 1212
A6: 당기순이익 | B6: 130 | D6: 이자비용 | E6: 28
B10: 항목 | C10: 수치 | D10: 판정점수 | E10: 최고점수 | F10: 최저점수 | G10: 가중치
A11: 수익성 | B11: 영업이익률 | C11: =B2/B4 -> 0.2727272727 | D11: =IF(C11<5%,(C11/5%-1)*G11,IF(AND(C11>=5%,C11<30%),((C11*10)-0.5)*G11,IF(C11>=30%,2.5*G11))) -> 2.227272727 | E11: 2.5 | F11: -1 | G11: 1
B12: ROE | C12: 0.04 | D12: =IF(C12<8%,(C12/8%-1)*G12,IF(AND(C12>=8%,C12<28%),((C12*10)-0.8)*G12,IF(C12>=28%,2*G12))) -> -0.5 | E12: 2 | F12: -1 | G12: 1
A13: 성장성 | B13: 매출액증가율 | C13: =(B4-B5)/B5 -> 1.2 | D13: 1 | E13: 1 | F13: -1 | G13: 1
B14: 영업이익증가율 | C14: =(B2-B3)/B3 -> -0.7 | D14: 1 | E14: 1 | F14: -1 | G14: 1
A15: 안정성 | B15: 유동비율 | C15: =(E2/E3)*100 -> 78.88395688 | D15: =IF(C15<100,(C15/100-1)*G15,IF(AND(C15>=100,C15<300),(C15/100)*G15,IF(C15>=300,3*G15))) -> -0.2111604312 | E15: 1 | F15: -1 | G15: 1
B16: 부채비율 | C16: =(E4/E5)*100 -> 109.9834983 | D16: =IF(C16<100,1-(C16/100)*G16,IF(AND(C16>=100,C16<300),(1-(C16/100))*G16,IF(C16>=300,-1*G16))) -> -0.0998349835 | E16: 1 | F16: -1 | G16: 1
B17: 이자보상배율 | C17: =B2/E6 -> 2.142857143 | D17: =IF(C17<1,C17/6-1*G17,IF(AND(C17>=1,C17<6),(C17/6)*G17,IF(C17>=6,1*G17))) -> 0.3571428571 | E17: 1 | F17: -1 | G17: 1
B18: 자본유보율 | C18: 1216.9 | D18: =IF(C18<500,(C18/500)-1*G18,IF(AND(C18>=500,C18<1000),(C18/500)-1*G18,IF(C18>=1000,1*G18))) -> 1 | G18: 1

Sheet C사
A1: C 사
A2: 영업이익(t) | B2: 40 | D2: 유동자산 | E2: 1609
A3: 영업이익(t-1) | B3: 176 | D3: 유동부채 | E3: 1634
A4: 매출액(t) | B4: 110 | D4: 부채총계 | E4: 1668
A5: 매출액(t-1) | B5: 60 | D5: 자본총계 | E5: 1525
A6: 당기순이익 | B6: 181 | D6: 이자비용 | E6: 46
B10: 항목 | C10: 수치 | D10: 판정점수 | E10: 최고점수 | F10: 최저점수 | G10: 가중치
A11: 수익성 | B11: 영업이익률 | C11: =B2/B4 -> 0.3636363636 | D11: =IF(C11<5%,(C11/5%-1)*G11,IF(AND(C11>=5%,C11<30%),((C11*10)-0.5)*G11,IF(C11>=30%,2.5*G11))) -> 2.5 | E11: 2.5 | F11: -1 | G11: 1
B12: ROE | C12: 0.04 | D12: =IF(C12<8%,(C12/8%-1)*G12,IF(AND(C12>=8%,C12<28%),((C12*10)-0.8)*G12,IF(C12>=28%,2*G12))) -> -0.5 | E12: 2 | F12: -1 | G12: 1
A13: 성장성 | B13: 매출액증가율 | C13: =(B4-B5)/B5 -> 0.8333333333 | D13: 1 | E13: 1 | F13: -1 | G13: 1
B14: 영업이익증가율 | C14: =(B2-B3)/B3 -> -0.7727272727 | D14: 1 | E14: 1 | F14: -1 | G14: 1
A15: 안정성 | B15: 유동비율 | C15: =(E2/E3)*100 -> 98.47001224 | D15: =IF(C15<100,(C15/100-1)*G15,IF(AND(C15>=100,C15<300),(C15/100)*G15,IF(C15>=300,3*G15))) -> -0.0152998776 | E15: 1 | F15: -1 | G15: 1
B16: 부채비율 | C16: =(E4/E5)*100 -> 109.3770492 | D16: =IF(C16<100,1-(C16/100)*G16,IF(AND(C16>=100,C16<300),(1-(C16/100))*G16,IF(C16>=300,-1*G16))) -> -0.0937704918 | E16: 1 | F16: -1 | G16: 1
B17: 이자보상배율 | C17: =B2/E6 -> 0.8695652174 | D17: =IF(C17<1,C17/6-1*G17,IF(AND(C17>=1,C17<6),(C17/6)*G17,IF(C17>=6,1*G17))) -> -0.8550724638 | E17: 1 | F17: -1 | G17: 1
B18: 자본유보율 | C18: 1216.9 | D18: =IF(C18<500,(C18/500)-1*G18,IF(AND(C18>=500,C18<1000),(C18/500)-1*G18,IF(C18>=1000,1*G18))) -> 1 | G18: 1

Sheet D사
A1: D 사
A2: 영업이익(t) | B2: 50 | D2: 유동자산 | E2: 1619
A3: 영업이익(t-1) | B3: 186 | D3: 유동부채 | E3: 1644
A4: 매출액(t) | B4: 120 | D4: 부채총계 | E4: 1678
A5: 매출액(t-1) | B5: 70 | D5: 자본총계 | E5: 1535
A6: 당기순이익 | B6: 191 | D6: 이자비용 | E6: 56
B10: 항목 | C10: 수치 | D10: 판정점수 | E10: 최고점수 | F10: 최저점수 | G10: 가중치
A11: 수익성 | B11: 영업이익률 | C11: =B2/B4 -> 0.4166666667 | D11: =IF(C11<5%,(C11/5%-1)*G11,IF(AND(C11>=5%,C11<30%),((C11*10)-0.5)*G11,IF(C11>=30%,2.5*G11))) -> 2.5 | E11: 2.5 | F11: -1 | G11: 1
B12: ROE | C12: 0.04 | D12: =IF(C12<8%,(C12/8%-1)*G12,IF(AND(C12>=8%,C12<28%),((C12*10)-0.8)*G12,IF(C12>=28%,2*G12))) -> -0.5 | E12: 2 | F12: -1 | G12: 1
A13: 성장성 | B13: 매출액증가율 | C13: =(B4-B5)/B5 -> 0.7142857143 | D13: 1 | E13: 1 | F13: -1 | G13: 1
B14: 영업이익증가율 | C14: =(B2-B3)/B3 -> -0.7311827957 | D14: 1 | E14: 1 | F14: -1 | G14: 1
A15: 안정성 | B15: 유동비율 | C15: =(E2/E3)*100 -> 98.47931873 | D15: =IF(C15<100,(C15/100-1)*G15,IF(AND(C15>=100,C15<300),(C15/100)*G15,IF(C15>=300,3*G15))) -> -0.01520681265 | E15: 1 | F15: -1 | G15: 1
B16: 부채비율 | C16: =(E4/E5)*100 -> 109.3159609 | D16: =IF(C16<100,1-(C16/100)*G16,IF(AND(C16>=100,C16<300),(1-(C16/100))*G16,IF(C16>=300,-1*G16))) -> -0.09315960912 | E16: 1 | F16: -1 | G16: 1
B17: 이자보상배율 | C17: =B2/E6 -> 0.8928571429 | D17: =IF(C17<1,C17/6-1*G17,IF(AND(C17>=1,C17<6),(C17/6)*G17,IF(C17>=6,1*G17))) -> -0.8511904762 | E17: 1 | F17: -1 | G17: 1
B18: 자본유보율 | C18: 1216.9 | D18: =IF(C18<500,(C18/500)-1*G18,IF(AND(C18>=500,C18<1000),(C18/500)-1*G18,IF(C18>=1000,1*G18))) -> 1 | G18: 1
